lending/lending_fUSD_20250706
["ID","MTS","AMOUNT","RATE_DAILY","PERIOD"]
[369997192,1751817062720,-460.0,0.00019726,2]
[369997193,1751817062730,-460.0,0.00019726,2]
[369997194,1751817062740,-150.0,0.00019726,2]
[369997195,1751817062751,-754.15,0.00019726,2]
[369997196,1751817062760,-460.0,0.00019726,2]
[369997197,1751817062770,-460.0,0.00019726,2]
[369997198,1751817062780,-460.0,0.00019726,2]
[369997199,1751817062790,-532.8,0.00019726,2]
[369997200,1751817062800,-460.0,0.00019726,2]
[369997201,1751817062810,-460.0,0.00019726,2]
[369997202,1751817062820,-568.02,0.00019726,2]
[369997203,1751817062830,-618.21,0.00019726,2]
[369997204,1751817062839,-460.0,0.00019726,2]
[369997205,1751817062850,-460.0,0.00019726,2]
[369997206,1751817062860,-530.26,0.00019726,2]
[369997207,1751817062869,-784.26,0.00019726,2]
[369997208,1751817062879,-460.0,0.00019726,2]
[369997209,1751817062889,-460.0,0.00019726,2]
[369997210,1751817062899,-460.0,0.00019726,2]
[369997211,1751817062910,-460.0,0.00019726,2]
[369997212,1751817062921,-1375.75,0.00019726,2]
[369997213,1751817062932,-460.0,0.00019726,2]
[369997214,1751817062942,-489.7,0.00019726,2]
[369997215,1751817062952,-697.84,0.00019726,2]
[369997216,1751817062962,-460.0,0.00019726,2]
[369997217,1751817062972,-460.0,0.00019726,2]
[369997218,1751817062982,-658.19,0.00019726,2]
[369997219,1751817062992,-264.457186,0.00019726,2]
[369997220,1751817063003,-1908.410171,0.00019726,2]
[369997221,1751817063013,-460.0,0.00019726,2]
[369997222,1751817063023,-1083.4,0.00019726,2]
[369997223,1751817063033,-551.72,0.00019726,2]
[369997224,1751817063044,-460.0,0.00019726,2]
[369997225,1751817063054,-460.0,0.00019726,2]
[369997226,1751817063064,-760.97,0.00019726,2]
[369997227,1751817063074,-486.03,0.00019726,2]
[369997228,1751817063085,-460.0,0.00019726,2]
[369997229,1751817063095,-460.0,0.00019726,2]
[369997230,1751817063106,-460.0,0.00019726,2]
[369997231,1751817063116,-460.0,0.00019726,2]
[369997232,1751817063127,-639.91,0.00019726,2]
[369997233,1751817063137,-728.93,0.00019726,2]
[369997234,1751817063148,-935.94,0.00019726,2]
[369997235,1751817063158,-460.0,0.00019726,2]
[369997236,1751817063169,-725.15,0.00019726,2]
[369997237,1751817063179,-386.24615839,0.00019726,2]
[369997238,1751817063190,-460.0,0.00019726,2]
[369997239,1751817063200,-460.0,0.00019726,2]
[369997240,1751817063211,-474.71,0.00019726,2]
[369997241,1751817063222,-460.0,0.00019726,2]
[369997242,1751817063233,-460.0,0.00019726,2]
[369997243,1751817063243,-460.0,0.00019726,2]
[369997244,1751817063254,-460.0,0.00019726,2]
[369997245,1751817063265,-460.0,0.00019726,2]
[369997246,1751817063275,-460.0,0.00019726,2]
[369997247,1751817063285,-1017.16,0.00019726,2]
[369997248,1751817063296,-460.0,0.00019726,2]
[369997249,1751817063306,-709.01,0.00019726,2]
[369997250,1751817063317,-460.0,0.00019726,2]
[369997251,1751817063327,-460.0,0.00019726,2]
[369997252,1751817063337,-460.0,0.00019726,2]
[369997253,1751817063351,-797.49,0.00019726,2]
[369997254,1751817063361,-183.815877,0.00019726,2]
[369997255,1751817063371,-460.0,0.00019726,2]
[369997256,1751817063381,-183.815877,0.00019726,2]
[369997257,1751817063393,-183.815877,0.00019726,2]
[369997258,1751817063403,-183.815877,0.00019726,2]
[369997259,1751817063413,-183.815877,0.00019726,2]
[369997260,1751817063423,-183.815885,0.00019726,2]
[369997261,1751817063433,-532.95,0.00019726,2]
[369997262,1751817063443,-484.11,0.00019726,2]
[369997263,1751817063453,-647.94,0.00019726,2]
[369997264,1751817063463,-460.0,0.00019726,2]
[369997265,1751817063473,-460.0,0.00019726,2]
[369997266,1751817063483,-548.22,0.00019726,2]
[369997267,1751817063493,-460.0,0.00019726,2]
[369997268,1751817063504,-467.66123388,0.00019726,2]
[369997269,1751817063514,-460.0,0.00019726,2]
[369997270,1751817063524,-615.53,0.00019726,2]
[369997271,1751817063534,-460.0,0.00019726,2]
[369997272,1751817063544,-460.0,0.00019726,2]
[369997273,1751817063555,-460.0,0.00019726,2]
[369997274,1751817063565,-460.0,0.00019726,2]
[369997275,1751817063575,-460.0,0.00019726,2]
[369997276,1751817063585,-765.03,0.00019726,2]
[369997277,1751817063596,-460.0,0.00019726,2]
[369997278,1751817063606,-460.0,0.00019726,2]
[369997279,1751817063616,-967.09,0.00019726,2]
[369997280,1751817063627,-460.0,0.00019726,2]
[369997281,1751817063637,-460.0,0.00019726,2]
[369997282,1751817063647,-460.0,0.00019726,2]
[369997283,1751817063657,-1099.12,0.00019726,2]
[369997284,1751817063667,-460.0,0.00019726,2]
[369997285,1751817063677,-460.0,0.00019726,2]
[369997286,1751817063687,-460.0,0.00019726,2]
[369997287,1751817063698,-460.0,0.00019726,2]
[369997288,1751817063709,-151.0,0.00019726,2]
[369997289,1751817063719,-217.191551,0.00019726,2]
[369997290,1751817063729,-628.54,0.00019726,2]
[369997291,1751817063740,-266.58609302,0.00019726,2]
[369997292,1751817063750,-460.0,0.00019726,2]
[369997293,1751817063761,-150.0,0.00019726,2]
[369997294,1751817064028,-150.0,0.00019726,2]
[369997295,1751817064038,-460.0,0.00019726,2]
[369997296,1751817064049,-652.31,0.00019726,2]
[369997297,1751817064063,-1048.27,0.00019726,2]
[369997298,1751817064073,-153.44887114,0.00019726,2]
[369997299,1751817064083,-460.0,0.00019726,2]
[369997300,1751817064093,-460.0,0.00019726,2]
[369997301,1751817064103,-583.18,0.00019726,2]
[369997302,1751817064113,-460.0,0.00019726,2]
[369997303,1751817064123,-460.0,0.00019726,2]
[369997304,1751817064134,-676.26,0.00019726,2]
[369997305,1751817064144,-3025.69,0.00019726,2]
[369997306,1751817064154,-460.0,0.00019726,2]
[369997307,1751817064164,-486.11,0.00019726,2]
[369997308,1751817064174,-709.72,0.00019726,2]
[369997309,1751817064184,-433.03337369,0.00019726,2]
[369997310,1751817064195,-564.05,0.00019726,2]
[369997311,1751817064204,-460.0,0.00019726,2]
[369997312,1751817064214,-460.0,0.00019726,2]
[369997313,1751817064224,-460.0,0.00019726,2]
[369997314,1751817064234,-460.0,0.00019726,2]
[369997315,1751817064244,-460.0,0.00019726,2]
[369997316,1751817064254,-460.0,0.00019726,2]
[369997317,1751817064264,-460.0,0.00019726,2]
[369997318,1751817064274,-460.0,0.00019726,2]
[369997319,1751817064283,-460.0,0.00019726,2]
[369997320,1751817064294,-460.0,0.00019726,2]
[369997321,1751817064304,-460.0,0.00019726,2]
[369997322,1751817064313,-460.0,0.00019726,2]
[369997323,1751817064323,-460.0,0.00019726,2]
[369997324,1751817064333,-788.28,0.00019726,2]
[369997325,1751817064344,-460.0,0.00019726,2]
[369997326,1751817064357,-460.0,0.00019726,2]
[369997327,1751817064367,-467.57,0.00019726,2]
[369997328,1751817064376,-460.0,0.00019726,2]
[369997329,1751817064386,-460.0,0.00019726,2]
[369997330,1751817064396,-703.09,0.00019726,2]
[369997331,1751817064405,-549.26,0.00019726,2]
[369997332,1751817064415,-460.0,0.00019726,2]
[369997333,1751817064424,-460.0,0.00019726,2]
[369997334,1751817064434,-460.0,0.00019726,2]
[369997335,1751817064443,-460.0,0.00019726,2]
[369997336,1751817064453,-460.0,0.00019726,2]
[369997337,1751817064463,-460.0,0.00019726,2]
[369997338,1751817064472,-460.0,0.00019726,2]
[369997339,1751817064482,-682.69,0.00019726,2]
[369997340,1751817064491,-712.44,0.00019726,2]
[369997341,1751817064502,-460.0,0.00019726,2]
[369997342,1751817064511,-300.0,0.00019726,2]
[369997343,1751817064520,-460.0,0.00019726,2]
[369997344,1751817064530,-1255.014287,0.00019726,2]
[369997345,1751817064539,-460.0,0.00019726,2]
[369997346,1751817064549,-1914.808636,0.00019726,2]
[369997347,1751817064558,-377.83982098,0.00019726,2]
[369997348,1751817064567,-566.91,0.00019726,2]
[369997349,1751817064576,-460.0,0.00019726,2]
[369997350,1751817064586,-683.18,0.00019726,2]
[369997351,1751817064595,-460.0,0.00019726,2]
[369997352,1751817064605,-460.0,0.00019726,2]
[369997353,1751817064614,-842.92,0.00019726,2]
[369997354,1751817064623,-460.0,0.00019726,2]
[369997355,1751817064633,-460.0,0.00019726,2]
[369997356,1751817064643,-956.31,0.00019726,2]
[369997357,1751817064653,-460.0,0.00019726,2]
[369997358,1751817064662,-478.51,0.00019726,2]
[369997359,1751817064672,-814.8,0.00019726,2]
[369997360,1751817064682,-460.0,0.00019726,2]
[369997361,1751817064692,-460.0,0.00019726,2]
[369997362,1751817064702,-460.0,0.00019726,2]
[369997363,1751817064714,-280.0,0.00019726,2]
[369997364,1751817064725,-460.0,0.00019726,2]
[369997365,1751817064735,-460.0,0.00019726,2]
[369997366,1751817064744,-542.97,0.00019726,2]
[369997367,1751817064755,-460.0,0.00019726,2]
[369997368,1751817064764,-556.67,0.00019726,2]
[369997369,1751817064773,-460.0,0.00019726,2]
[369997370,1751817064782,-492.81,0.00019726,2]
[369997371,1751817064792,-151.0,0.00019726,2]
[369997372,1751817064801,-88.83261153,0.00019726,2]
[369997373,1751817064836,-796.20738847,0.00019726,2]
[369997374,1751817064847,-460.0,0.00019726,2]
[369997375,1751817064858,-460.0,0.00019726,2]
[369997376,1751817064869,-460.0,0.00019726,2]
[369997377,1751817064878,-491.13,0.00019726,2]
[369997378,1751817064888,-460.0,0.00019726,2]
[369997379,1751817064898,-460.0,0.00019726,2]
[369997380,1751817064908,-460.0,0.00019726,2]
[369997381,1751817064917,-591.71,0.00019726,2]
[369997382,1751817064926,-460.0,0.00019726,2]
[369997383,1751817064936,-827.01,0.00019726,2]
[369997384,1751817064946,-34.93172853,0.00019726,2]
[369997385,1751817064962,-2347.08827147,0.00019726,2]
[369997386,1751817064972,-589.19,0.00019726,2]
[369997387,1751817064981,-460.0,0.00019726,2]
[369997388,1751817064990,-616.04,0.00019726,2]
[369997389,1751817065000,-460.0,0.00019726,2]
[369997390,1751817065010,-460.0,0.00019726,2]
[369997391,1751817065019,-460.0,0.00019726,2]
[369997392,1751817065029,-785.56,0.00019726,2]
[369997393,1751817065038,-1436.17,0.00019726,2]
[369997394,1751817065048,-684.02,0.00019726,2]
[369997395,1751817065058,-460.0,0.00019726,2]
[369997396,1751817065068,-735.78,0.00019726,2]
[369997397,1751817065078,-607.14,0.00019726,2]
[369997398,1751817065087,-928.53,0.00019726,2]
[369997399,1751817065097,-533.46,0.00019726,2]
[369997400,1751817065107,-460.0,0.00019726,2]
[369997401,1751817065116,-754.59,0.00019726,2]
[369997402,1751817065126,-460.0,0.00019726,2]
[369997403,1751817065136,-460.0,0.00019726,2]
[369997404,1751817065146,-2972.27,0.00019726,2]
[369997405,1751817065155,-1284.91,0.00019726,2]
[369997406,1751817065164,-1066.89,0.00019726,2]
[369997407,1751817065174,-3354.73,0.00019726,2]
[369997408,1751817065183,-657.56,0.00019726,2]
[369997409,1751817065193,-567.83,0.00019726,2]
[369997410,1751817065203,-460.0,0.00019726,2]
[369997411,1751817065212,-460.0,0.00019726,2]
[369997412,1751817065222,-978.24,0.00019726,2]
[369997413,1751817065232,-460.0,0.00019726,2]
[369997414,1751817065242,-907.39,0.00019726,2]
[369997415,1751817065251,-460.0,0.00019726,2]
[369997416,1751817065261,-502.11,0.00019726,2]
[369997417,1751817065271,-460.0,0.00019726,2]
[369997418,1751817065280,-460.0,0.00019726,2]
[369997419,1751817065290,-460.0,0.00019726,2]
[369997420,1751817065299,-2080.6,0.00019726,2]
[369997421,1751817065308,-2568.27,0.00019726,2]
[369997422,1751817065318,-670.11,0.00019726,2]
[369997423,1751817065327,-460.0,0.00019726,2]
[369997424,1751817065337,-460.0,0.00019726,2]
[369997425,1751817065349,-460.0,0.00019726,2]
[369997426,1751817065359,-460.0,0.00019726,2]
[369997427,1751817065368,-386.88460303,0.00019726,2]
[369997428,1751817065381,-73.11539697,0.00019726,2]
[369997429,1751817065390,-708.35,0.00019726,2]
[369997430,1751817065400,-504.23,0.00019726,2]
[369997431,1751817065409,-464.69485074,0.00019726,2]
[369997432,1751817065419,-869.76,0.00019726,2]
[369997433,1751817065430,-313.56663154,0.00019726,2]
[369997434,1751817065439,-814.72,0.00019726,2]
[369997435,1751817065450,-460.0,0.00019726,2]
[369997436,1751817065459,-611.23,0.00019726,2]
[369997437,1751817065468,-3565.49,0.00019726,2]
[369997438,1751817065478,-891.75,0.00019726,2]
[369997439,1751817065487,-460.0,0.00019726,2]
[369997440,1751817065497,-460.0,0.00019726,2]
[369997441,1751817065507,-930.27,0.00019726,2]
[369997442,1751817065517,-460.0,0.00019726,2]
[369997443,1751817065526,-460.0,0.00019726,2]
[369997444,1751817065536,-460.0,0.00019726,2]
[369997445,1751817065546,-327.69,0.00019726,2]
[369997446,1751817065555,-460.0,0.00019726,2]
[369997447,1751817065565,-800.97,0.00019726,2]
[369997448,1751817065574,-460.0,0.00019726,2]
[369997449,1751817065584,-463.37860815,0.00019726,2]
[369997450,1751817065594,-460.0,0.00019726,2]
[369997451,1751817065603,-460.0,0.00019726,2]
[369997452,1751817065613,-243.5421526,0.00019726,2]
[369997453,1751817065980,-756.4578474,0.00019726,2]
[369997454,1751817065991,-1007.73,0.00019726,2]
[369997455,1751817066001,-917.18202711,0.00019726,2]
[369997456,1751817066013,-625.76797289,0.00019726,2]
[369997457,1751817066023,-582.77,0.00019726,2]
[369997458,1751817066034,-460.0,0.00019726,2]
[369997459,1751817066043,-460.0,0.00019726,2]
[369997460,1751817066054,-890.26,0.00019726,2]
[369997461,1751817066064,-769.74,0.00019726,2]
[369997462,1751817066073,-460.0,0.00019726,2]
[369997463,1751817066083,-460.0,0.00019726,2]
[369997464,1751817066093,-611.38,0.00019726,2]
[369997465,1751817066103,-460.0,0.00019726,2]
[369997466,1751817066113,-460.0,0.00019726,2]
[369997467,1751817066123,-979.32,0.00019726,2]
[369997468,1751817066133,-904.65,0.00019726,2]
[369997469,1751817066143,-151.0,0.00019726,2]
[369997470,1751817066153,-3534.83,0.00019726,2]
[369997471,1751817066163,-738.53,0.00019726,2]
[369997472,1751817066173,-1386.56,0.00019726,2]
[369997473,1751817066183,-460.0,0.00019726,2]
[369997474,1751817066268,-460.0,0.00019726,2]
[369997475,1751817066278,-573.04,0.00019726,2]
[369997476,1751817066288,-1594.31,0.00019726,2]
[369997477,1751817066298,-631.16,0.00019726,2]
[369997478,1751817066308,-460.0,0.00019726,2]
[369997479,1751817066317,-479.28,0.00019726,2]
[369997480,1751817066327,-1454.81,0.00019726,2]
[369997481,1751817066341,-967.54,0.00019726,2]
[369997482,1751817066355,-1110.47,0.00019726,2]
[369997483,1751817066365,-1142.82,0.00019726,2]
[369997484,1751817066375,-1871.49,0.00019726,2]
[369997485,1751817066385,-963.77,0.00019726,2]
[369997486,1751817066397,-1069.91,0.00019726,2]
[369997487,1751817066408,-893.99,0.00019726,2]
[369997488,1751817066419,-460.0,0.00019726,2]
[369997489,1751817066431,-1079.56,0.00019726,2]
[369997490,1751817066442,-618.34,0.00019726,2]
[369997491,1751817066452,-508.39,0.00019726,2]
[369997492,1751817066462,-1012.04,0.00019726,2]
[369997493,1751817066472,-563.96,0.00019726,2]
[369997494,1751817066482,-466.05,0.00019726,2]
[369997495,1751817066493,-775.78,0.00019726,2]
[369997496,1751817066503,-460.0,0.00019726,2]
[369997497,1751817066513,-460.0,0.00019726,2]
[369997498,1751817066524,-2254.76,0.00019726,2]
[369997499,1751817066535,-4951.65,0.00019726,2]
[369997500,1751817066545,-460.0,0.00019726,2]
[369997501,1751817066554,-848.33,0.00019726,2]
[369997502,1751817066564,-824.69,0.00019726,2]
[369997503,1751817066574,-463.27835738,0.00019726,2]
[369997504,1751817066584,-864.81,0.00019726,2]
[369997505,1751817066595,-460.0,0.00019726,2]
[369997506,1751817066607,-902.04,0.00019726,2]
[369997507,1751817066617,-515.45,0.00019726,2]
[369997508,1751817066626,-1151.73,0.00019726,2]
[369997509,1751817066637,-1569.87,0.00019726,2]
[369997510,1751817066647,-460.0,0.00019726,2]
[369997511,1751817066656,-9153.25,0.00019726,2]
[369997512,1751817066665,-500.0,0.00019726,2]
[369997513,1751817066675,-460.0,0.00019726,2]
[369997514,1751817066685,-460.0,0.00019726,2]
[369997515,1751817066695,-460.0,0.00019726,2]
[369997516,1751817066706,-471.8965415,0.00019726,2]
[369997517,1751817066717,-460.0,0.00019726,2]
[369997518,1751817066727,-460.0,0.00019726,2]
[369997519,1751817066736,-1443.92,0.00019726,2]
[369997520,1751817066747,-1036.0,0.00019726,2]
[369997521,1751817066758,-409.65153372,0.00019726,2]
[369997522,1751817066767,-718.79,0.00019726,2]
[369997523,1751817066776,-460.0,0.00019726,2]
[369997524,1751817066787,-751.81,0.00019726,2]
[369997525,1751817066797,-460.0,0.00019726,2]
[369997526,1751817066807,-639.58,0.00019726,2]
[369997527,1751817066816,-1329.42,0.00019726,2]
[369997528,1751817066826,-880.83,0.00019726,2]
[369997529,1751817066835,-1006.21,0.00019726,2]
[369997530,1751817066844,-460.0,0.00019726,2]
[369997531,1751817066854,-715.57,0.00019726,2]
[369997532,1751817066863,-2690.86,0.00019726,2]
[369997533,1751817066874,-460.0,0.00019726,2]
[369997534,1751817066883,-150.0,0.00019726,2]
[369997535,1751817066894,-460.0,0.00019726,2]
[369997536,1751817066903,-150.0,0.00019726,2]
[369997537,1751817066912,-686.99,0.00019726,2]
[369997538,1751817066921,-493.51030928,0.00019726,2]
[369997539,1751817066931,-150.0,0.00019726,2]
[369997540,1751817066941,-1037.32,0.00019726,2]
[369997541,1751817066950,-150.0,0.00019726,2]
[369997542,1751817066959,-646.54,0.00019726,2]
[369997543,1751817066969,-460.0,0.00019726,2]
[369997544,1751817066978,-150.0,0.00019726,2]
[369997545,1751817066987,-460.0,0.00019726,2]
[369997546,1751817066997,-58302.14,0.00019726,2]
[369997547,1751817067007,-460.0,0.00019726,2]
[369997548,1751817067017,-150.0,0.00019726,2]
[369997549,1751817067026,-460.0,0.00019726,2]
[369997550,1751817067035,-713.41,0.00019726,2]
[369997551,1751817067044,-500.0,0.00019726,2]
[369997552,1751817067054,-460.0,0.00019726,2]
[369997553,1751817067063,-460.0,0.00019726,2]
[369997554,1751817067073,-743.47,0.00019726,2]
[369997555,1751817067083,-1522.43,0.00019726,2]
[369997556,1751817067094,-468.23,0.00019726,2]
[369997557,1751817067103,-460.0,0.00019726,2]
[369997558,1751817067112,-903.64,0.00019726,2]
[369997559,1751817067122,-460.0,0.00019726,2]
[369997560,1751817067131,-791.38,0.00019726,2]
[369997561,1751817067141,-1690.78,0.00019726,2]
[369997562,1751817067151,-715.89,0.00019726,2]
[369997563,1751817067160,-638.41,0.00019726,2]
[369997564,1751817067170,-893.56,0.00019726,2]
[369997565,1751817067179,-460.0,0.00019726,2]
[369997566,1751817067189,-460.0,0.00019726,2]
[369997567,1751817067199,-792.1,0.00019726,2]
[369997568,1751817067208,-10776.0,0.00019726,2]
[369997569,1751817067218,-832.11,0.00019726,2]
[369997570,1751817067227,-460.0,0.00019726,2]
[369997571,1751817067236,-460.0,0.00019726,2]
[369997572,1751817067246,-460.0,0.00019726,2]
[369997573,1751817067256,-609.33,0.00019726,2]
[369997574,1751817067266,-520.18,0.00019726,2]
[369997575,1751817067275,-460.0,0.00019726,2]
[369997576,1751817067285,-460.0,0.00019726,2]
[369997577,1751817067295,-460.0,0.00019726,2]
[369997578,1751817067305,-160.26,0.00019726,2]
[369997579,1751817067315,-508.25733501,0.00019726,2]
[369997580,1751817067324,-726.45,0.00019726,2]
[369997581,1751817067334,-935.68,0.00019726,2]
[369997582,1751817067344,-567.59,0.00019726,2]
[369997583,1751817067356,-1217.28,0.00019726,2]
[369997584,1751817067366,-460.0,0.00019726,2]
[369997585,1751817067376,-642.69,0.00019726,2]
[369997586,1751817067386,-460.0,0.00019726,2]
[369997587,1751817067397,-786.46,0.00019726,2]
[369997588,1751817067405,-561.24,0.00019726,2]
[369997589,1751817067415,-613.98,0.00019726,2]
[369997590,1751817067426,-1948.19,0.00019726,2]
[369997591,1751817067436,-460.0,0.00019726,2]
[369997592,1751817067445,-1442.84,0.00019726,2]
[369997593,1751817067455,-630.26,0.00019726,2]
[369997594,1751817067464,-464.05142383,0.00019726,2]
[369997595,1751817067473,-460.0,0.00019726,2]
[369997596,1751817067482,-556.72,0.00019726,2]
[369997597,1751817067491,-150.0,0.00019726,2]
[369997598,1751817067500,-460.0,0.00019726,2]
[369997599,1751817067510,-2052.37,0.00019726,2]
[369997600,1751817067519,-577.98,0.00019726,2]
[369997601,1751817067529,-1011.0,0.00019726,2]
[369997602,1751817067538,-460.0,0.00019726,2]
[369997603,1751817067547,-803.35,0.00019726,2]
[369997604,1751817067556,-757.92,0.00019726,2]
[369997605,1751817067566,-460.0,0.00019726,2]
[369997606,1751817067575,-1693.69,0.00019726,2]
[369997607,1751817067585,-479.81,0.00019726,2]
[369997608,1751817067595,-460.0,0.00019726,2]
[369997609,1751817067605,-657.25,0.00019726,2]
[369997610,1751817067614,-4595.99,0.00019726,2]
[369997611,1751817067623,-460.0,0.00019726,2]
[369997612,1751817067633,-1076.48,0.00019726,2]
[369997613,1751817067642,-460.0,0.00019726,2]
[369997614,1751817067651,-643.28,0.00019726,2]
[369997615,1751817067660,-722.38,0.00019726,2]
[369997616,1751817067669,-706.46,0.00019726,2]
[369997617,1751817067678,-460.0,0.00019726,2]
[369997618,1751817067687,-460.0,0.00019726,2]
[369997619,1751817067696,-150.0,0.00019726,2]
[369997620,1751817067705,-460.0,0.00019726,2]
[369997621,1751817067715,-662.68,0.00019726,2]
[369997622,1751817067724,-460.0,0.00019726,2]
[369997623,1751817067734,-1464.14,0.00019726,2]
[369997624,1751817067743,-871.65,0.00019726,2]
[369997625,1751817067752,-2975.3,0.00019726,2]
[369997626,1751817067762,-1478.02,0.00019726,2]
[369997627,1751817067771,-584.0,0.00019726,2]
[369997628,1751817067780,-1815.31,0.00019726,2]
[369997629,1751817067789,-753.79,0.00019726,2]
[369997630,1751817067798,-460.0,0.00019726,2]
[369997631,1751817067807,-1014.65,0.00019726,2]
[369997632,1751817067817,-918.35,0.00019726,2]
[369997633,1751817067826,-460.0,0.00019726,2]
[369997634,1751817067835,-1881.63,0.00019726,2]
[369997635,1751817067845,-150.0,0.00019726,2]
[369997636,1751817067854,-460.0,0.00019726,2]
[369997637,1751817067863,-460.0,0.00019726,2]
[369997638,1751817067872,-802.2,0.00019726,2]
[369997639,1751817067881,-150.0,0.00019726,2]
[369997640,1751817067890,-460.0,0.00019726,2]
[369997641,1751817067900,-460.0,0.00019726,2]
[369997642,1751817067909,-150.0,0.00019726,2]
[369997643,1751817067918,-599.30220093,0.00019726,2]
[369997644,1751817067928,-1219.58,0.00019726,2]
[369997645,1751817067937,-2805.73,0.00019726,2]
[369997646,1751817067947,-1221.61,0.00019726,2]
[369997647,1751817067956,-460.0,0.00019726,2]
[369997648,1751817067965,-582.02,0.00019726,2]
[369997649,1751817067974,-460.0,0.00019726,2]
[369997650,1751817067983,-571.17,0.00019726,2]
[369997651,1751817067992,-1215.91,0.00019726,2]
[369997652,1751817068002,-460.0,0.00019726,2]
[369997653,1751817068011,-663.45,0.00019726,2]
[369997654,1751817068020,-799.98,0.00019726,2]
[369997655,1751817068030,-2499.03,0.00019726,2]
[369997656,1751817068039,-460.0,0.00019726,2]
[369997657,1751817068048,-460.0,0.00019726,2]
[369997658,1751817068057,-525.51,0.00019726,2]
[369997659,1751817068067,-460.0,0.00019726,2]
[369997660,1751817068076,-2980.59,0.00019726,2]
[369997661,1751817068085,-460.0,0.00019726,2]
[369997662,1751817068094,-1239.68,0.00019726,2]
[369997663,1751817068104,-400.57266539,0.00019726,2]
[369997664,1751817068113,-367.46664549,0.00019726,2]
[369997665,1751817068122,-460.0,0.00019726,2]
[369997666,1751817068131,-956.64,0.00019726,2]
[369997667,1751817068141,-9955.11,0.00019726,2]
[369997668,1751817068150,-706.05,0.00019726,2]
[369997669,1751817068159,-3013.54,0.00019726,2]
[369997670,1751817068168,-671.78,0.00019726,2]
[369997671,1751817068178,-1092.19,0.00019726,2]
[369997672,1751817068187,-1770.54,0.00019726,2]
[369997673,1751817068196,-460.0,0.00019726,2]
[369997674,1751817068205,-460.0,0.00019726,2]
[369997675,1751817068214,-2477.38,0.00019726,2]
[369997676,1751817068224,-460.0,0.00019726,2]
[369997677,1751817068233,-2204.47,0.00019726,2]
[369997678,1751817068242,-460.0,0.00019726,2]
[369997679,1751817068251,-860.22,0.00019726,2]
[369997680,1751817068261,-460.0,0.00019726,2]
[369997681,1751817068270,-783.12,0.00019726,2]
[369997682,1751817068279,-853.19,0.00019726,2]
[369997683,1751817068289,-460.0,0.00019726,2]
[369997684,1751817068298,-460.0,0.00019726,2]
[369997685,1751817068307,-427.01413602,0.00019726,2]
[369997686,1751817068317,-1326.72,0.00019726,2]
[369997687,1751817068327,-460.0,0.00019726,2]
[369997688,1751817068336,-460.0,0.00019726,2]
[369997689,1751817068348,-460.0,0.00019726,2]
[369997690,1751817068359,-460.0,0.00019726,2]
[369997691,1751817068368,-1235.98,0.00019726,2]